Cogmind - Beta 12 @@@ ROGUE MODE // 2023.03.30 @ 09:54:59 Player: wchar_t Result: Destroyed by D-53 Grenadier with Mini Grenade Launcher Performance ------------- Evolutions (0) 0 Regions Visited (2) 400 Robots Destroyed (8) 40 Value Destroyed (72) 72 Prototype IDs (1) 20 Alien Tech Used (0) 0 Bonus (0) 0 TOTAL SCORE: 532 Bonus ------- None Cogmind --------- Core Integrity 0/250 Matter 290/300 Energy 97/100 System Corruption 0% Temperature Cool (0) Movement Core (50) Location -10/Mines Parts ------- > --- POWER (1) -------- (None) > --- PROPULSION (2) --- (None) > --- UTILITY (2) ------ (None) > --- WEAPON (2) ------- (None) > --- INVENTORY (5) ---- Light Treads Wheel Propulsion Shielding Splice Drone Bay (6/6) Makeshift Hammer Peak State ------------ > --- POWER ------------ (None) > --- PROPULSION ------- (None) > --- UTILITY ---------- Splice Drone Bay > --- WEAPON ----------- Makeshift Hammer > --- INVENTORY -------- Light Treads Wheel Wheel Wheel Propulsion Shielding [Rating: 11] Favorites ----------- Power None Propulsion Wheel Wheel Wheel Flight Unit Flight Unit Utility Propulsion Shielding Device Splice Drone Bay Protection Propulsion Shielding Weapon Makeshift Hammer Impact Weapon Makeshift Hammer Build | -11 -10 -10 ------- Run | Jun Mat Min Slots Evolved . | . . . Power . | . . . Propulsion . | . . . Utility . | . . . Weapon . | . . . Parts Attached 7 | . 3 4 Power . | . . . Engine . | . . . Core . | . . . Reactor . | . . . Propulsion 4 | . 2 2 Treads . | . . . Leg . | . . . Wheel 2 | . 2 . Hover . | . . . Flight 2 | . . 2 Utility 2 | . 1 1 Device 1 | . . 1 Storage . | . . . Processor . | . . . Hackware . | . . . Protection 1 | . 1 . Artifact . | . . . Weapon 1 | . . 1 Energy Gun . | . . . Energy Cannon . | . . . Ballistic Gun . | . . . Ballistic Cannon . | . . . Launcher . | . . . Special Weapon . | . . . Impact Weapon 1 | . . 1 Slashing Weapon . | . . . Piercing Weapon . | . . . Special Melee Weapon . | . . . Unidentified Prototypes 1 | . . 1 Parts Lost 2 | . . 2 Power . | . . . Propulsion 2 | . . 2 Utility . | . . . Weapon . | . . . Highest Loss Streak 1 | . . 1 To Critical Strikes . | . . . Average Slot Usage (%) 31 | . 28 32 Wheel 11 | . 21 10 Flight 5 | . . 6 Protection 5 | . 7 5 Impact Weapon 9 | . . 10 Naked Turns 10 | . 8 2 Heaviest Build 4 | . 1 4 Greatest Support 8 | 3 3 8 Greatest Overweight (x) 1 | . . 1 Average Overweight (x) . | . . . Largest Inventory Capacity 5 | 5 5 5 Average Capacity 5 | 5 5 5 Most Carried 5 | . 2 5 Average Carried 3 | . 1 4 Final Capacity 5 | 5 5 5 Final Carried 5 | . 2 5 Class Distribution -------------------- 100% | Mutant Dominant Class ---------------- Mutant | -10/Materials Mutant | -10/Mines Resources | -11 -10 -10 ----------- Run | Jun Mat Min Matter Collected 260 | 200 . 60 Remotely . | . . . Salvage Created 228 | . . 228 Parts 6 | . . 6 Haulers Intercepted . | . . . Recyclers Shooed . | . . . Parts Field Recycled . | . . . Retrieved Matter . | . . . Parts Self-Destructed . | . . . Prevented . | . . . Kills | -11 -10 -10 ------- Run | Jun Mat Min Combat Hostiles Destroyed 6 | . . 6 Melee 4 | . . 4 Classes Destroyed 2 | . . 2 Recycler 2 | . . 2 Swarmer 6 | . . 6 Best Kill Streak 5 | . . 5 Combat Bots Only 5 | . . 5 Max Kills in Single Turn 1 | . . 1 Gunslinging . | . . . Exploded . | . . . Melee 1 | . . 1 Uniques/NPCs Destroyed . | . . . Combat | -11 -10 -10 -------- Run | Jun Mat Min Damage Taken 423 | . . 423 Core 258 | . . 258 Absorbed by Shields . | . . . Redirected to Shielding 14 | . . 14 Core Remaining (%) 100 | 100 . . Volleys Fired . | . . . Largest . | . . . Hottest . | . . . Shots Fired . | . . . Gun . | . . . Cannon . | . . . Launcher . | . . . Special . | . . . Kinetic . | . . . Thermal . | . . . Explosive . | . . . Electromagnetic . | . . . Robot Hit Streak . | . . . Robot Miss Streak . | . . . Penetration Max . | . . . Secondary Targets . | . . . Shots Hit Robots 9 | . . 9 Core Hits 3 | . . 3 Critical Kills . | . . . Critical Parts Destroyed 1 | . . 1 Critical Strikes 1 | . . 1 Smash 1 | . . 1 Melee Attacks 18 | . . 18 Impact 18 | . . 18 Slashing . | . . . Piercing . | . . . Sneak Attacks 1 | . . 1 Combat Hostiles . | . . . Follow-up Attacks . | . . . Damage Inflicted 506 | . . 506 Guns . | . . . Cannons . | . . . Explosions . | . . . Melee 506 | . . 506 Ramming . | . . . Kinetic . | . . . Thermal . | . . . Explosive . | . . . Electromagnetic . | . . . Impact 506 | . . 506 Slashing . | . . . Piercing . | . . . Highest Corruption . | . . . Average Corruption . | . . . Corruption Purged . | . . . Corruption Blocked . | . . . Overload Shots . | . . . Overflow Damage 197 | . . 197 Projectiles . | . . . Explosions . | . . . Melee 197 | . . 197 Knockbacks 2 | . . 2 Impact 1 | . . 1 Kinetic . | . . . Secondary 1 | . . 1 Self-Inflicted Damage . | . . . Shots . | . . . Rammed . | . . . Targets Rammed . | . . . Kicked . | . . . Crushed . | . . . Highest Temperature . | . . . Average Temperature . | . . . Received Heat Transfer 92 | . . 92 Siege Activations . | . . . Robots Corrupted . | . . . Combat Hostiles . | . . . Parts Fried 4 | . . 4 Impact Corruptions 8 | . . 8 Robots Melted . | . . . Combat Hostiles . | . . . Parts Melted . | . . . Heat Transferred . | . . . Parts Sabotaged . | . . . Parts Stolen . | . . . Parts Stripped . | . . . Power Chain Reactions . | . . . Missiles Intercepted . | . . . Alert | -11 -10 -10 ------- Run | Jun Mat Min Peak Influence 262 | . 30 262 Initial 11 | . . 11 Average 119 | . 5 143 Maximum Alert Level 1 | . . 1 Low Security (%) 71 | 100 100 65 Level 1 28 | . . 34 Level 2 . | . . . Level 3 . | . . . Level 4 . | . . . Level 5 . | . . . High Security . | . . . Max Security . | . . . Squads Dispatched 1 | . 1 . Investigation . | . . . Extermination . | . . . Reinforcement 1 | . 1 . Assault . | . . . Garrison . | . . . Intercept . | . . . Searches Triggered . | . . . Construction Impeded . | . . . Haulers Reinforced . | . . . Active Scanning Responses . | . . . Cargo Convoy Interrupts . | . . . Stealth | -11 -10 -10 --------- Run | Jun Mat Min Distress Signals 1 | . 1 . Communications Jammed . | . . . Distress Signals . | . . . Times Spotted 37 | . 2 35 Peak Tracking Total 20 | . 4 20 Tactical Retreats 5 | . . 5 Traps | -11 -10 -10 ------- Run | Jun Mat Min Traps Triggered . | . . . Indirectly . | . . . Trap Hack Attempts . | . . . Triggered . | . . . Disarmed . | . . . Reprogrammed . | . . . Reused . | . . . Traps Extracted . | . . . Installed . | . . . Triggered . | . . . Machines | -11 -10 -10 ---------- Run | Jun Mat Min Machines Disabled . | . . . Max in Single Turn . | . . . Machines Repaired . | . . . Machines Sabotaged . | . . . Overloaded Fab Kills . | . . . Hacking | -11 -10 -10 --------- Run | Jun Mat Min Machines Accessed 2 | . 1 1 Terminals 1 | . 1 . Fabricators . | . . . Repair Stations . | . . . Recycling Units . | . . . Scanalyzers . | . . . Garrison Access . | . . . Total Hacks 3 | . 2 1 Successful 1 | . . 1 Failed 2 | . 2 . Catastrophic 1 | . 1 . Database Lockouts . | . . . Manual 2 | . 2 . Terminals 2 | . 2 . Fabricators . | . . . Repair Stations . | . . . Recycling Units . | . . . Scanalyzers . | . . . Garrison Access . | . . . Terminal Hacks 1 | . . 1 Open Door 1 | . . 1 Fabricator Hacks . | . . . Repair Station Hacks . | . . . Recycling Unit Hacks . | . . . Scanalyzer . | . . . Garrison Access Hacks . | . . . Unauthorized Hacks . | . . . Terminals . | . . . Fabricators . | . . . Repair Stations . | . . . Recycling Units . | . . . Scanalyzers . | . . . Garrison Access . | . . . Data Cores Recovered . | . . . Used . | . . . Hacking Detections 1 | . 1 . Full Trace Events 1 | . 1 . Feedback Events . | . . . Feedback Blocked . | . . . Robot Schematics Acquired . | . . . Robots Built . | . . . Authchips . | . . . Time . | . . . Total Robot Build Rating . | . . . Part Schematics Acquired . | . . . Parts Built . | . . . Authchips . | . . . Time . | . . . Total Part Build Rating . | . . . Parts Repaired . | . . . Time . | . . . Parts Recycled . | . . . Recycled Matter . | . . . Retrieved Matter . | . . . Retrieved Components . | . . . Parts Scanalyzed . | . . . Part Schematics Acquired . | . . . Parts Damaged . | . . . Bothacking | -11 -10 -10 ------------ Run | Jun Mat Min Used RIF Installer . | . . . Robots Hacked . | . . . Non-combat . | . . . Combat . | . . . Robot Hacks Applied . | . . . Relay Couplers Released . | . . . Fabnet Peak Effective % . | . . . Robots Rewired . | . . . Allies Hacked . | . . . Hacks Repelled . | . . . Allies | -11 -10 -10 -------- Run | Jun Mat Min Total Allies . | . . . Largest Group . | . . . Highest-Rated Group . | . . . Highest-Rated Ally . | . . . Total Orders . | . . . Ally Attacks . | . . . Total Damage . | . . . Kills . | . . . Allies Corrupted . | . . . Allies Melted . | . . . Intel | -11 -10 -10 ------- Run | Jun Mat Min Robot Analysis Total . | . . . Derelict Logs Recovered 1 | . . 1 Drone Launches . | . . . Drone Recoveries . | . . . Exploration | -11 -10 -10 ------------- Run | Jun Mat Min Turns Passed 323 | 13 42 268 Spaces Moved 572 | 27 70 475 Core 407 | 27 70 310 Treads . | . . . Legs . | . . . Wheels . | . . . Hover . | . . . Flight 165 | . . 165 Fastest Speed 37 | 50 50 37 Average Speed 46 | 50 50 46 Slowest Speed 100 | 50 50 100 Overloaded Moves . | . . . Propulsion Burnouts . | . . . Robots Hopped 3 | . . 3 Cave-ins Triggered . | . . . Exploration Rate (%) 34 | 3 27 74 Regions Visited 2 Branch Regions 1 Pre-discovered Areas . | . . . Known Exits Taken . | . . . Unknown Exits Taken 2 | 1 1 . Scrap Searched 1 | . . 1 Spaces Dug 1 | . . 1 Terrain Destroyed 1 | . . 1 Melee 1 | . . 1 Projectile . | . . . AOE . | . . . Terrain Rammed . | . . . Walls Destroyed . | . . . Machines Disabled . | . . . Actions | -11 -10 -10 --------- Run | Jun Mat Min Total 605 | 26 74 505 Wait . | . . . Move 564 | 26 69 469 Hop 3 | . . 3 Pick Up 5 | . 2 3 Fast Attach 6 | . 3 3 Attach 1 | . . 1 Detach 4 | . . 4 Swap . | . . . Drop 4 | . . 4 Fire . | . . . Melee 18 | . . 18 Ram . | . . . Kick . | . . . Crush . | . . . Escape Stasis . | . . . Rewire . | . . . Trap . | . . . Miscellaneous . | . . . Route ------- -11/Junkyard -10/Materials -10/Mines (discovered 2 exits: [*Mat x2]) History --------- Turn | Location | Event 5 | -11/Junkyard | Discovered new exit (range 16) 14 | -11/Junkyard | Entered Materials 53 | -10/Materials | Discovered new exit (range 6) 56 | -10/Materials | Entered Mines 83 | -10/Mines | A weapon hastily lodged in a ceiling crevice suddenly fell to the ground 121 | -10/Mines | Discovered new exit (range 7) 219 | -10/Mines | Discovered new exit (range 10) 236 | -10/Mines | Core integrity fell below 50% 263 | -10/Mines | Found the Drone Emporium 265 | -10/Mines | Found Prototype Device 265 | -10/Mines | Identified Splice Drone Bay 283 | -10/Mines | Assembled infested the area 291 | -10/Mines | Received a Mining Laser from a helpful Derelict 307 | -10/Mines | Build established: Mutant 323 | -10/Mines | Core integrity fell below 20% 324 | -10/Mines | Destroyed by D-53 Grenadier with Mini Grenade Launcher Last Messages --------------- 00266_ Dropped Splice Drone Bay. 00267_ Dropped Wheel. 00267_ Acquired Splice Drone Bay. 00275_ Acquired derelict log, extracted data. Data stored: Storage entrances (x1). 00283_ ALERT: Infestation in the mines, dispatching Demolisher response squad. 00289_ A derelict emerges from the shadows: "What are you doing alone down here?" 00290_ T-07 Excavator destroyed. 00291_ Q6-DV1(g): "And why aren't you carrying a mining laser?! Certainly you don't want THEM to uncover you when the ceiling comes crashing down? Here, take my spare." 00309_ T-07 Excavator destroyed. 00313_ as-45391 sneak attacks. 00313_ K-01 Serf destroyed. 00317_ SHOP.Sys disabled. 00322_ Dropped Wheel. 00322_ C-30 ARC bursts open, deploying its payload. 00322_ D-53 Grenadier unfolds itself. Map ----- +----------------------------------------------------+ | ??????????# #?????????????????######### #??? | | ??????????# ##????????????????# !% #??? | | ??????????# ##???????????????#%!###### #??? | | ??????????+ ##??????????????#= #????# #??? | | ??????????+ ##?????????????# #????# #??? | | ??????????# ########??????# #????# #??? | | ??????????# ???### #????######??? | | ??????????## ####?????## #????????????? | | ##?###?????# #?????#### #????????????? | | ## #?????# ##?????# ##????????????? | | #?????# ## #??????## ##????????????? | | #?????# #?# #???????### ##???????????? | | ##?????# #??####????####### #???????????? | | ##??????# #?????????##""## #???????????? | | #???????# #?????????#" # # ##?######???? | | #???????# #?????????#" ## ## ##??? | | #???????# ########??#" = ## #??? | | #???????# #??#" # # #??? | | #???????# ###### #??##""## #???? | | ##??????## #????# #???###### ##???? | | ##???????# ##???# #????????# ## ##????? | | #????????# ##??# #????????# ##?# #?????? | | #????????## #### #????###### ##??? #????? | | #?????????## #???## # ## ##????? #????? | | #??????????# #### ##### ## #?????? #?????? | | ##?????????# ##??# %d @ = #??????????????? | | ##????????# #???####### ####??????????????? | | #???????## #######???## ###?????????????????? | | #???##### #########????????????####???? | | #?### #### #????????###???## ##?## | | #### #??# #???????## #??# ## | | #?# ##??###### ######??# ??# | | ### #????????# #??# ### | | ## ##????????# #### #??# ## < #### | | ######????????## #??# #???# #####? | | ##????????????## #??# #???## ### #? | | #?????????????# #??# #????## #? | | """ ##????????????# ##?# #?????## % #? | | """ #####????????## ### ######## !####? | | """ ##????????## ## ## #???? | | """ #?????????## ##???? | | #??????????### ## ##????? | | ## #???????????## #########?????? | | #### #???????????## ####?????????????? | | ##??# #????????????#####????????????????? | | ????## #### ##?????????????????????????????????? | | ?????####???###??????????????????????????????????? | | ?????????????????????????????????????????????????? | | | | | +----------------------------------------------------+ Best States ------------- Heat Dissipation 25 Energy Generation 5 Energy Capacity 100 Matter Stores 300 Matter Capacity 300 Sight Range 16 Terrain Scan Density 10 Propulsion Shielding 33 Evasion (%) 62 Item Schematics ----------------- None Robot Schematics ------------------ None Fabricated ------------ Nothing Alien Tech Used ----------------- None Achievements -------------- None Challenges ------------ None Game ------ Seed PhysicsWardroneSplitter Manual? 0 Play Time 00:06:53 Cumulative 197.7 hours Start 2023.03.30 @ 09:36:22 End 2023.03.30 @ 09:54:59 Sessions 1 Manual Loads 0 Difficulty Rogue Special Mode None Game No. 79 Rogue 63 Adventurer 8 Explorer 8 Win Type - Total 13 Types 7/0/3/1/1/1/0/0/0 Lore% 84 Gallery% 79 Achievement% 72 Wizard Run 0 Options --------- ASCII 1 Keyboard 1 Movement Vi Keybinds 0 Fullscreen 1 Font 18/CogWide Map View 76x50 Tactical HUD 1 Map Filters NONE Filters NONE Steam X RUN: b62abb95-637f-4571-8f43-66f200596fe0